bitfinex-derivatives/quotes_BNBF0:USTF0_20250115
["timestamp","ask_amount","ask_price","bid_price","bid_amount"]
[1736929431696,0.26260097,700.39,698.86,1.06600885]
[1736929431892,0.26260097,700.38,698.86,1.06600885]
[1736929432096,0.26260097,700.37,698.86,1.06600885]
[1736929432296,0.26260097,700.36,698.86,1.06600885]
[1736929432494,0.28555111,700.4,698.7,0.28624588]
[1736929432495,1.06903001,700.38,698.91,1.06600885]
[1736929432693,0.26259571,700.37,698.91,1.06600885]
[1736929433794,1.06903001,700.33,698.97,1.06600885]
[1736929434000,0.26259571,700.32,698.97,1.06600885]
[1736929434199,1.06903001,700.33,698.97,1.06600885]
[1736929434593,1.06903001,700.26,699.06,1.06600885]
[1736929435691,1.06903001,700.37,698.85,1.06600885]
[1736929436800,1.06903001,700.37,698.86,1.06600885]
[1736929440903,1.06903001,700.38,698.87,1.06600885]
[1736929442305,1.06903001,700.38,698.86,1.06600885]
[1736929443103,1.06903001,700.39,698.87,1.06600885]
[1736929444209,0.26259638,700.38,698.86,1.06600885]
[1736929445109,1.06903001,700.39,698.86,1.06600885]
[1736929445411,1.06903001,700.23,699.08,1.06600885]
[1736929446207,1.06903001,700.27,698.94,1.06600885]
[1736929446510,1.06903001,700.27,698.95,0.2861435]
[1736929447407,1.06903001,700.25,699.0,1.06600885]
[1736929448914,0.28555111,700.4,698.95,0.2861435]
[1736929458218,0.28555111,700.4,698.99,1.06600885]
[1736929458813,0.28555111,700.4,699.0,0.28612303]
[1736929459220,0.28555111,700.4,699.22,1.06600885]
[1736929459221,1.06903001,700.37,699.22,1.06600885]
[1736929460421,1.06903001,700.39,699.2,1.06600885]
[1736929461414,0.28555111,700.4,699.22,1.06600885]
[1736929463920,0.28555111,700.4,699.14,1.06600885]
[1736929465116,1.06903001,701.0,699.0,0.28612303]
[1736929465423,0.28531077,700.99,699.0,0.28612303]
[1736929467018,0.26245171,700.98,699.0,0.28612303]
[1736929468021,0.28531077,700.99,699.0,0.28612303]
[1736929468223,0.26246195,700.97,699.0,0.28612303]
[1736929468421,0.26246195,700.96,699.0,0.28612303]
[1736929468613,1.35434078,700.99,699.0,0.28612303]
[1736929468614,0.26246195,700.95,699.0,0.28612303]
[1736929468814,0.28533112,700.94,699.0,0.28612303]
[1736929469019,0.26246195,700.93,699.0,0.28612303]
[1736929469317,0.28533926,700.92,699.0,0.28612303]
[1736929469524,0.26246195,700.91,699.0,0.28612303]
[1736929471022,0.26249568,700.9,699.0,0.28612303]
[1736929471224,0.26249568,700.89,699.0,0.28612303]
[1736929471522,0.26249568,700.88,699.0,0.28612303]
[1736929471724,0.28536369,700.86,699.0,0.28612303]
[1736929471920,0.26249568,700.85,699.0,0.28612303]
[1736929472223,0.28537183,700.84,699.0,0.28612303]
[1736929472522,0.26249568,700.83,699.0,0.28612303]
[1736929472723,0.28537998,700.82,699.0,0.28612303]
[1736929472917,0.26249568,700.81,699.0,0.28612303]
[1736929473120,0.28538812,700.8,699.0,0.28612303]
[1736929473319,0.26249568,700.79,699.0,0.28612303]
[1736929473523,1.06903001,700.9,699.0,0.28612303]
[1736929473524,0.28539627,700.78,699.0,0.28612303]
[1736929473723,0.26249096,700.77,699.0,0.28612303]
[1736929473916,0.28540441,700.76,699.0,0.28612303]
[1736929474122,0.26249096,700.75,699.0,0.28612303]
[1736929474317,0.28541256,700.74,699.0,0.28612303]
[1736929477722,0.26248793,700.73,699.0,0.28612303]
[1736929478024,0.28542071,700.72,699.0,0.28612303]
[1736929478323,0.26248793,700.71,699.0,0.28612303]
[1736929478624,0.28542885,700.7,699.0,1.35213188]
[1736929478825,0.26248793,700.69,699.0,1.35213188]
[1736929479020,0.285437,700.68,699.0,1.35213188]
[1736929479727,0.26249011,700.67,699.02,1.06600885]
[1736929479928,0.26249011,700.67,699.03,0.28611075]
[1736929480128,0.28544515,700.66,699.03,0.28611075]
[1736929480322,0.26249011,700.65,699.03,0.28611075]
[1736929481526,0.26249011,700.65,699.04,1.06600885]
[1736929481829,0.26249011,700.65,699.05,0.28610256]
[1736929482030,0.2624966,700.64,699.05,0.28610256]
[1736929482229,0.2624966,700.63,699.05,0.28610256]
[1736929482430,0.28544515,700.66,699.05,0.28610256]
[1736929482629,0.26249488,700.65,699.05,1.35211141]
[1736929483632,0.26249488,700.65,699.08,1.06600885]
[1736929483931,0.26249488,700.65,699.09,0.28608619]
[1736929484235,0.28545329,700.64,699.09,0.28608619]
[1736929484530,0.26249488,700.63,699.09,0.28608619]
[1736929484733,0.54799005,700.62,699.09,0.28608619]
[1736929484933,1.61702414,700.61,699.12,1.06600885]
[1736929485133,0.5479982,700.6,699.12,1.35208277]
[1736929485334,0.54800228,700.59,699.12,1.35208277]
[1736929485531,0.26252265,700.58,699.12,1.35208277]
[1736929485934,0.26252265,700.58,699.14,1.06600885]
[1736929487036,1.33155266,700.58,699.15,1.06600885]
[1736929487232,0.26252265,700.57,699.15,1.06600885]
[1736929487637,0.26252466,700.56,699.15,1.06600885]
[1736929487836,0.26252466,700.55,699.16,1.06600885]
[1736929488033,0.26252466,700.54,699.16,1.06600885]
[1736929488239,0.26252466,700.53,699.16,1.06600885]
[1736929488440,0.26252466,700.52,699.16,1.06600885]
[1736929488744,0.54803093,700.51,699.16,1.06600885]
[1736929489042,5.39712499,701.38,699.12,0.28607392]
[1736929489043,0.548035,700.5,699.14,1.06600885]
[1736929489240,0.54803908,700.49,699.14,1.06600885]
[1736929489444,0.54804316,700.48,699.14,1.06600885]
[1736929489643,0.26252466,700.47,699.14,1.06600885]
[1736929489940,0.26252466,700.47,699.12,0.28607392]
[1736929489941,1.06903001,700.45,699.12,0.28607392]
[1736929490135,0.26252466,700.44,699.12,0.28607392]
[1736929490335,0.26256581,700.43,699.12,0.28607392]
[1736929490539,0.26256581,700.44,699.12,0.28607392]
[1736929490740,0.26256581,700.43,699.12,0.28607392]
[1736929490941,0.26256581,700.42,699.12,0.28607392]
[1736929491140,0.26256581,700.41,699.12,0.28607392]
[1736929491339,0.26256581,700.4,699.12,0.28607392]
[1736929491533,0.26256581,700.39,699.12,0.28607392]
[1736929491736,0.26256581,700.38,699.12,0.28607392]
[1736929491941,0.26256581,700.37,699.12,0.28607392]
[1736929492142,0.26256581,700.36,699.12,0.28607392]
[1736929492341,0.26256581,700.35,699.12,0.28607392]
[1736929492542,1.06903001,700.45,699.12,0.28607392]
[1736929492734,0.2855348,700.44,699.12,0.28607392]
[1736929504150,0.26257019,700.43,699.12,0.28607392]
[1736929504354,0.28554295,700.42,699.12,0.28607392]
[1736929504547,0.26257019,700.41,699.12,0.28607392]
[1736929506253,0.28554295,700.42,699.12,0.28607392]
[1736929514556,0.28554295,700.42,699.25,1.06389414]
[1736929515251,0.28554295,700.42,699.24,1.06389414]
[1736929516250,0.28554295,700.42,699.26,1.06389414]
[1736929519057,0.28554295,700.42,699.25,1.06389414]
[1736929519661,1.06665807,700.75,699.25,1.06389414]
[1736929520257,8.53182506,709.2,699.12,0.28607392]
[1736929520258,1.06665807,701.13,699.12,0.28607392]
[1736929520458,0.28526194,701.11,699.12,0.28607392]
[1736929523364,0.26240765,701.1,699.12,0.28607392]
[1736929525064,0.28527007,701.09,699.12,0.28607392]
[1736929525265,0.2624107,701.08,699.12,0.28607392]
[1736929525466,0.2624107,701.08,699.15,1.06389414]
[1736929525859,0.26237776,701.07,699.15,1.06389414]
[1736929526059,0.26237776,701.06,699.15,1.06389414]
[1736929526260,0.26237776,701.08,699.15,1.06389414]
[1736929526465,0.28527007,701.09,699.12,1.34996806]
[1736929527566,0.26236232,701.08,699.13,0.85668997]
[1736929527765,0.26236232,701.08,699.14,1.69827448]
[1736929527965,0.28527007,701.09,699.14,1.69827448]
[1736929528265,0.26235385,701.08,699.15,1.69827448]
[1736929528466,0.26235385,701.08,699.12,0.28607392]
[1736929528667,0.26235385,701.08,699.2,1.06389414]
[1736929529367,0.28527007,701.09,699.2,1.06389414]
[1736929529572,0.26233001,701.08,699.21,5.31220702]
[1736929529769,0.26233001,701.08,699.22,2.5528092]
[1736929529970,0.26233001,701.08,699.23,2.5528092]
[1736929530167,0.26233001,701.08,699.24,2.5528092]
[1736929530364,0.26232416,701.07,699.25,2.5528092]
[1736929530666,0.28527007,701.09,699.26,2.5528092]
[1736929530871,0.28527007,701.09,699.3,1.06389414]
[1736929530872,0.26232178,701.06,699.3,1.06389414]
[1736929531172,0.28527007,701.09,699.31,2.5528092]
[1736929531371,0.26231998,701.08,699.3,1.06389414]
[1736929531671,0.26231998,701.08,699.31,2.55077705]
[1736929531970,0.26231998,701.08,699.32,1.69422153]
[1736929532171,0.26231998,701.08,699.27,1.06389414]
[1736929532372,0.26231998,701.08,699.29,0.28600437]
[1736929533069,0.26231998,701.08,699.3,1.69346786]
[1736929533266,0.26231998,701.08,699.32,0.2859921]
[1736929533464,0.26232055,701.07,699.32,0.2859921]
[1736929533670,0.5246411,701.07,699.32,0.2859921]
[1736929533871,0.26232055,701.06,699.32,0.2859921]
[1736929534270,0.26233448,701.05,699.32,0.2859921]
[1736929534472,0.26233448,701.04,699.32,0.2859921]
[1736929534773,0.26233448,701.03,699.32,0.2859921]
[1736929534974,0.26232055,701.07,699.32,0.2859921]
[1736929534975,0.26233448,701.02,699.32,0.2859921]
[1736929535175,0.26233448,701.01,699.32,0.2859921]
[1736929535472,0.26233448,701.0,699.32,0.2859921]
[1736929535674,0.26233448,700.99,699.32,0.2859921]
[1736929535874,0.26233448,700.98,699.32,0.2859921]
[1736929536069,0.26233448,700.97,699.32,0.2859921]
[1736929536274,0.26232055,701.07,699.32,0.2859921]
[1736929536474,0.26237197,700.96,699.32,0.2859921]
[1736929536673,0.54765425,701.06,699.32,0.2859921]
[1736929536869,0.26237197,701.05,699.32,0.2859921]
[1736929538970,0.28529042,701.04,699.32,0.2859921]
[1736929539171,0.26236383,701.03,699.32,0.2859921]
[1736929540177,0.28529856,701.02,699.32,0.2859921]
[1736929540377,0.26236383,701.01,699.32,0.2859921]
[1736929540575,0.2853067,701.0,699.32,0.2859921]
[1736929540777,0.26236383,700.99,699.32,0.2859921]
[1736929540972,0.28531484,700.98,699.32,0.2859921]
[1736929541176,0.26236383,700.97,699.32,0.2859921]
[1736929541377,0.28532298,700.96,699.32,0.2859921]
[1736929541578,0.26236383,700.95,699.32,0.2859921]
[1736929542573,0.28533112,700.94,699.32,0.2859921]
[1736929542773,0.26239152,700.93,699.32,0.2859921]
[1736929543079,0.28533926,700.92,699.32,0.2859921]
[1736929543272,0.26239152,700.91,699.32,0.2859921]
[1736929543476,0.28534741,700.9,699.32,0.2859921]
[1736929543674,0.26239152,700.89,699.32,0.2859921]
[1736929544073,0.28535555,700.88,699.32,0.2859921]
[1736929544278,0.26239152,700.87,699.32,0.2859921]
[1736929544678,0.26241215,700.86,699.32,0.2859921]
[1736929544880,0.26241215,700.87,699.32,0.2859921]
[1736929545074,0.26241215,700.86,699.32,0.2859921]
[1736929547082,0.28535962,700.87,699.32,0.2859921]
[1736929547577,0.26236009,700.86,699.32,0.2859921]
[1736929547881,0.26236108,700.85,699.32,0.2859921]
[1736929548077,0.28535962,700.87,699.32,0.2859921]
[1736929548279,0.26236566,700.86,699.32,0.2859921]
[1736929548682,0.26236566,700.86,699.32,1.34988624]
[1736929548982,0.28535962,700.87,699.32,1.34988624]
[1736929549682,0.28535962,700.87,699.32,0.2859921]
[1736929552982,0.28535962,700.87,699.32,1.34988624]
[1736929554084,0.28535962,700.87,699.39,1.06389414]
[1736929554284,0.28535962,700.87,699.4,0.28595939]
[1736929555181,0.28535962,700.87,699.44,1.06389414]
[1736929555977,0.28535962,700.87,699.45,0.28593895]
[1736929556181,0.28535962,700.87,699.45,1.34983309]
[1736929558481,0.28535962,700.87,699.46,1.06389414]
[1736929558679,0.28535962,700.87,699.47,0.28593077]
[1736929559883,0.28535962,700.87,699.6,1.06389414]
[1736929560985,0.28535962,700.87,699.63,1.06389414]
[1736929561980,0.2623593,700.86,699.65,1.06389414]
[1736929562178,0.2623593,700.86,699.56,1.06389414]
[1736929562179,0.2623593,700.86,699.47,0.28593077]
[1736929562486,0.28535962,700.87,699.47,0.28593077]
[1736929562685,0.26235854,700.86,699.47,0.28593077]
[1736929563684,1.35328567,700.87,699.68,1.06328134]
[1736929564483,0.26236283,700.86,699.68,1.06328134]
[1736929564887,0.26236283,700.86,699.69,1.06328134]
[1736929565390,0.28535962,700.87,699.69,1.06328134]
[1736929565786,0.28535962,700.87,699.68,1.06328134]
[1736929566989,0.28535962,700.87,699.67,1.06328134]
[1736929567996,1.35328567,700.87,699.7,1.06328134]
[1736929569190,1.35328567,700.87,699.65,1.06328134]
[1736929570296,0.28535962,700.87,699.47,0.28593077]
[1736929579297,0.26241099,700.86,699.47,0.28593077]
[1736929579497,0.54777468,700.86,699.47,0.28593077]
[1736929579696,0.26241099,700.85,699.47,0.28593077]
[1736929580096,0.28536369,700.86,699.47,0.28593077]
[1736929580696,1.06792605,700.85,699.52,1.06328134]
[1736929581694,0.28536369,700.86,699.52,1.06328134]
[1736929581695,1.06792605,700.84,699.52,1.06328134]
[1736929582292,0.26239275,700.83,699.52,1.06328134]
[1736929582894,1.06792605,700.81,699.62,1.06328134]
[1736929583994,1.06792605,700.81,699.61,1.06328134]
[1736929584796,1.06792605,700.82,699.62,1.06328134]
[1736929585902,0.28536369,700.86,699.52,1.06328134]
[1736929586907,0.28536369,700.86,699.59,1.06328134]
[1736929587703,0.28536369,700.86,699.57,1.06328134]
[1736929588807,0.28536369,700.86,699.62,1.06328134]
[1736929590307,0.28536369,700.86,699.63,1.06328134]
[1736929591403,0.28536369,700.86,699.62,1.06328134]
[1736929594810,0.28536369,700.86,699.63,1.06328134]
[1736929597209,0.28536369,700.86,699.67,1.06328134]
[1736929598114,0.28536369,700.86,699.73,1.06328134]
[1736929599013,0.28536369,700.86,699.72,1.06328134]
[1736929599810,0.28536369,700.86,699.69,1.06328134]
[1736929600213,0.28536369,700.86,699.47,0.28593077]
[1736929601317,0.28536369,700.86,699.69,1.06360433]
[1736929603819,0.28536369,700.86,699.68,1.06360433]
[1736929605522,0.28536369,700.86,699.69,1.06360433]
[1736929607623,0.28536369,700.86,699.68,1.06360433]
[1736929608321,0.28536369,700.86,699.47,0.28593077]
[1736929608322,0.28536369,700.86,699.63,1.06360433]
[1736929609118,0.28536369,700.86,699.65,1.06360433]
[1736929613025,0.28536369,700.86,699.68,1.06360433]
[1736929614028,0.28536369,700.86,699.66,1.06360433]
[1736929615228,0.28536369,700.86,699.67,1.06360433]
[1736929616424,0.28536369,700.86,699.71,1.06360433]
[1736929617630,0.28536369,700.86,699.72,1.06360433]
[1736929618728,0.28536369,700.86,699.47,0.28593077]
[1736929618729,0.28536369,700.86,699.74,1.06360433]
[1736929619727,0.28536369,700.86,699.47,0.28593077]
[1736929619728,0.28536369,700.86,699.77,1.06360433]
[1736929620933,0.28536369,700.86,699.79,1.06360433]
[1736929621834,0.28536369,700.86,699.5,1.06360433]
[1736929622034,0.28536369,700.86,699.51,0.28591442]
[1736929630840,0.28536369,700.86,699.53,1.06360433]
[1736929631238,0.28536369,700.86,699.54,2.84745855]
[1736929631438,0.28536369,700.86,699.55,2.56155639]
[1736929631641,0.28536369,700.86,699.56,5.62097857]
[1736929631836,0.28536369,700.86,699.57,2.84744629]
[1736929632033,0.28536369,700.86,699.89,1.06360433]
[1736929633239,0.28536369,700.86,699.9,1.06360433]
[1736929634237,0.28536369,700.86,699.89,1.06360433]
[1736929636542,0.28536369,700.86,699.86,1.06360433]
[1736929636745,0.28536369,700.86,699.58,0.28588581]
[1736929638239,0.28536369,700.86,699.7,1.06492941]
[1736929638446,0.28536369,700.86,699.8,1.06492941]
[1736929639643,0.28536369,700.86,699.79,1.06492941]
[1736929641643,0.28536369,700.86,699.77,1.06492941]
[1736929642545,0.28536369,700.86,699.76,1.06492941]
[1736929643848,0.28536369,700.86,699.75,1.06492941]
[1736929646146,0.28536369,700.86,699.81,1.06492941]
[1736929647349,0.28536369,700.86,699.82,1.06492941]
[1736929648551,0.28536369,700.86,699.8,1.06492941]
[1736929649653,0.28536369,700.86,699.79,1.06492941]
[1736929650956,0.28536369,700.86,699.82,1.06492941]
[1736929651856,0.28536369,700.86,699.83,1.06492941]
[1736929654854,0.28536369,700.86,699.84,1.06492941]
[1736929655956,0.28536369,700.86,699.85,1.06492941]
[1736929656960,0.28536369,700.86,699.83,1.06492941]
[1736929658859,0.28536369,700.86,699.87,1.06492941]
[1736929659962,0.28536369,700.86,699.88,1.06492941]
[1736929660956,0.28536369,700.86,699.85,1.06492941]
[1736929661862,0.28536369,700.86,699.86,1.06492941]
[1736929662963,0.28536369,700.86,699.88,1.06492941]
[1736929663965,0.28536369,700.86,699.58,0.28588581]
[1736929663966,0.28536369,700.86,699.9,1.06492941]
[1736929664962,1.35475106,700.86,699.91,1.06492941]
[1736929665861,1.35475106,700.86,699.92,1.06492941]
[1736929666660,1.06938737,700.84,699.94,1.06492941]
[1736929670766,1.06938737,700.84,699.95,1.06492941]
[1736929671864,0.28536369,700.86,699.83,1.06492941]
[1736929673065,0.28536369,700.86,699.81,1.06492941]
[1736929673967,0.28536369,700.86,699.82,1.06492941]
[1736929675067,0.28536369,700.86,699.81,1.06492941]
[1736929676572,0.28536369,700.86,699.8,1.06492941]
[1736929679975,0.28536369,700.86,699.81,1.06492941]
[1736929681177,0.28536369,700.86,699.86,1.06492941]
[1736929681977,0.28536369,700.86,699.93,1.06492941]
[1736929683275,0.28536369,700.86,699.83,1.06492941]
[1736929683474,0.28536369,700.86,699.58,0.28588581]
[1736929683871,0.28536369,700.86,699.59,2.562277]
[1736929684075,0.28536369,700.86,699.6,2.562277]
[1736929684373,0.28536369,700.86,699.61,2.56229869]
[1736929684578,0.28536369,700.86,699.62,1.70579045]
[1736929684778,0.28536369,700.86,699.85,1.06418817]
[1736929687873,0.28536369,700.86,699.83,1.06418817]
[1736929688877,0.28536369,700.86,699.73,1.06418817]
[1736929688878,0.28536369,700.86,699.84,1.06418817]
[1736929689973,0.28536369,700.86,699.73,1.06418817]
[1736929689974,0.28536369,700.86,699.83,1.06418817]
[1736929691179,0.28536369,700.86,699.82,1.06418817]
[1736929692279,0.28536369,700.86,699.81,1.06418817]
[1736929694783,0.28536369,700.86,699.83,1.06418817]
[1736929695980,0.28536369,700.86,699.86,1.06418817]
[1736929696778,0.28536369,700.86,699.8,1.06418817]
[1736929697783,0.28536369,700.86,699.83,1.06418817]
[1736929700387,0.28536369,700.86,699.58,0.28588581]
[1736929705286,1.28321052,702.09,699.58,0.28588581]
[1736929705287,1.0693421,701.22,699.58,0.28588581]
[1736929706389,1.0693421,701.14,699.76,1.06418817]
[1736929706589,1.0693421,701.14,699.77,0.28580819]
[1736929708591,1.0693421,701.1,699.77,0.28580819]
[1736929709486,1.0693421,701.11,699.77,1.34999636]
[1736929711587,1.0693421,701.1,699.77,0.28580819]
[1736929712592,1.0693421,701.11,699.77,0.28580819]
[1736929714495,1.0693421,701.1,699.77,0.28580819]
[1736929716389,2.18324013,701.86,699.77,0.28580819]
[1736929716390,1.0693421,701.13,699.77,0.28580819]
[1736929717593,1.0693421,701.16,699.77,0.28580819]
[1736929721301,0.28524566,701.15,699.77,0.28580819]
[1736929722302,1.35458776,701.15,699.77,0.28580819]
[1736929723602,1.0693421,701.14,699.77,0.28580819]
[1736929725705,1.0693421,701.09,699.77,0.28580819]
[1736929726503,1.0693421,701.09,699.74,1.06418817]
[1736929726704,1.0693421,701.09,699.75,1.06418817]
[1736929727701,1.0693421,701.09,699.62,1.06418817]
[1736929727702,1.0693421,701.07,699.79,1.06418817]
[1736929728908,1.0693421,701.06,699.79,1.06418817]
[1736929730010,1.0693421,701.06,699.76,1.06418817]
[1736929730309,1.0693421,701.08,699.76,1.06418817]
[1736929731503,1.0693421,701.07,699.77,1.06418817]
[1736929733509,1.0693421,701.07,699.09,2.17271752]
[1736929733510,1.0693421,701.07,699.78,1.06418817]
[1736929734309,1.0693421,701.05,699.79,1.06418817]
[1736929735414,1.0693421,701.05,699.14,2.17271752]
[1736929735415,1.0693421,701.03,699.82,1.06418817]
[1736929736515,1.0693421,701.03,699.83,1.06418817]
[1736929737415,1.0693421,700.99,699.86,1.06418817]
[1736929738615,1.0693421,700.98,699.86,1.06418817]
[1736929739716,1.0693421,700.97,699.86,1.06418817]
[1736929740614,1.0693421,700.97,699.27,2.17271752]
[1736929740615,1.0693421,700.92,699.94,1.06418817]
[1736929741516,1.0693421,700.97,699.85,1.06418817]
[1736929742413,1.0693421,700.98,699.85,1.06418817]
[1736929743812,1.0693421,700.97,699.85,1.06418817]
[1736929745116,1.0693421,700.98,699.83,1.06418817]
[1736929746024,1.0693421,700.98,699.21,2.17271752]
[1736929746025,1.0693421,701.0,699.8,1.06418817]
[1736929746928,1.0693421,701.0,699.81,1.06418817]
[1736929748024,1.0693421,701.0,699.8,1.06418817]
[1736929750229,1.0693421,701.01,699.81,1.06418817]
[1736929751130,1.0693421,701.01,699.16,2.17271752]
[1736929751131,1.0693421,700.98,699.85,1.06418817]
[1736929752126,1.0693421,700.97,699.86,1.06418817]
[1736929753127,1.0693421,700.97,699.87,1.06418817]
[1736929754530,1.0693421,700.98,699.85,1.06418817]
[1736929755727,1.0693421,700.97,699.85,1.06418817]
[1736929756926,1.0693421,700.97,699.26,2.17271752]
[1736929756927,1.0693421,700.96,699.84,1.06418817]
[1736929758028,1.0693421,700.98,699.86,1.06418817]
[1736929759134,1.0693421,701.06,699.66,1.06418817]
[1736929759435,1.0693421,701.06,699.67,0.28584904]
[1736929760034,1.0693421,701.48,699.67,0.28584904]
[1736929760035,1.0693421,701.04,699.68,1.06418817]
[1736929760934,1.0693421,701.05,699.67,0.28584904]
[1736929761737,1.0693421,701.06,699.67,0.28584904]
[1736929762533,2.18324013,701.87,699.67,0.28584904]
[1736929762534,1.0693421,701.05,699.74,1.06418817]
[1736929763831,1.0693421,701.04,699.74,1.06418817]
[1736929764736,1.0693421,700.98,699.81,1.06418817]
[1736929766135,1.0693421,700.98,699.82,1.06418817]
[1736929768535,1.0693421,700.98,699.81,1.06418817]
[1736929769743,1.0693421,700.98,699.82,1.06418817]
[1736929771044,1.0693421,700.98,699.84,1.06418817]
[1736929772342,2.18324013,701.65,699.67,0.28584904]
[1736929772343,1.0693421,700.91,699.96,1.06418817]
[1736929773546,2.18324013,701.46,699.86,1.06418817]
[1736929773547,1.0693421,700.9,699.95,1.06418817]
[1736929774443,1.0693421,700.89,699.94,1.06418817]
[1736929775143,1.0693421,700.89,699.95,1.06418817]
[1736929776645,1.0693421,700.89,699.94,1.06418817]
[1736929778849,1.0693421,701.01,699.74,1.06418817]
[1736929779944,1.0693421,701.0,699.73,1.06418817]
[1736929780749,1.0693421,701.13,699.67,0.28584904]
[1736929780950,1.3545959,701.13,699.67,0.28584904]
[1736929784350,0.2852538,701.13,699.67,0.28584904]
[1736929788448,0.2852538,701.13,699.72,1.06418817]
[1736929788856,0.2852538,701.13,699.73,0.28582453]
[1736929789555,1.0693421,701.08,699.94,1.06418817]
[1736929790551,1.0693421,701.09,699.95,1.06418817]
[1736929791850,1.3545959,701.13,699.89,1.06418817]
[1736929792555,1.3545959,701.13,699.88,1.06418817]
[1736929792556,0.2852538,701.13,699.88,1.06418817]
[1736929793757,0.2852538,701.13,699.87,1.06418817]
[1736929794456,0.2852538,701.13,699.73,0.28582453]
[1736929806264,0.26232855,701.12,699.73,0.28582453]
[1736929806860,0.28526194,701.11,699.73,0.28582453]
[1736929807263,1.0693421,701.1,699.73,0.28582453]
[1736929807860,0.28526194,701.11,699.73,0.28582453]
[1736929809860,0.26232255,701.1,699.73,0.28582453]
[1736929810463,1.06844153,701.08,699.73,0.28582453]
[1736929810967,0.26233301,701.07,699.73,0.28582453]
[1736929811767,1.06844153,701.03,699.73,0.28582453]
[1736929812170,0.26233004,701.02,699.73,0.28582453]
[1736929812364,1.06844153,701.03,699.73,0.28582453]
[1736929812777,1.06844153,700.99,699.76,1.06347596]
[1736929813668,1.06844153,701.04,699.73,0.28582453]
[1736929815768,0.28526194,701.11,699.73,0.28582453]
[1736929821076,0.26238174,701.1,699.73,0.28582453]
[1736929821279,0.28527007,701.09,699.73,0.28582453]
[1736929821477,0.26238174,701.08,699.73,0.28582453]
[1736929821674,0.28527821,701.07,699.73,0.28582453]
[1736929821880,0.26238174,701.06,699.73,0.28582453]
[1736929822080,0.28528635,701.05,699.73,0.28582453]
[1736929822280,1.06844153,701.0,699.73,0.28582453]
[1736929822481,0.26238174,700.99,699.73,0.28582453]
[1736929823080,0.26238575,700.98,699.73,0.28582453]
[1736929823380,0.26238575,700.97,699.73,0.28582453]
[1736929824477,1.06844153,700.94,699.73,0.28582453]
[1736929824681,0.26238575,700.93,699.73,0.28582453]
[1736929825476,0.26238575,700.92,699.73,0.28582453]
[1736929825676,1.06844153,700.97,699.73,0.28582453]
[1736929825882,0.26238574,700.96,699.73,0.28582453]
[1736929826479,1.06844153,700.94,699.73,0.28582453]
[1736929826684,0.26238574,700.93,699.73,0.28582453]
[1736929826982,1.06844153,700.94,699.73,0.28582453]
[1736929827183,0.26238331,700.92,699.73,0.28582453]
[1736929827483,0.26238314,700.91,699.73,0.28582453]
[1736929827681,1.06844153,700.97,699.73,0.28582453]
[1736929828178,1.06844153,701.04,699.73,0.28582453]
[1736929828380,0.26238524,701.03,699.73,0.28582453]
[1736929829485,1.33082677,701.03,699.73,0.28582453]
[1736929829681,0.26238524,701.02,699.73,0.28582453]
[1736929830388,1.06844153,700.96,699.73,0.28582453]
[1736929830687,0.26238524,700.95,699.73,0.28582453]
[1736929831485,1.33082677,700.95,699.73,0.28582453]
[1736929831685,0.26238524,700.94,699.73,0.28582453]
[1736929833285,0.26238524,700.93,699.73,0.28582453]
[1736929833480,0.26238524,700.92,699.73,0.28582453]
[1736929833681,0.26238524,700.91,699.73,0.28582453]
[1736929833883,0.26238524,700.9,699.73,0.28582453]
[1736929834085,1.06844153,700.96,699.73,0.28582453]
[1736929834282,0.28532705,700.95,699.73,0.28582453]
[1736929846997,0.26238853,700.94,699.73,0.28582453]
[1736929848001,1.06660352,700.89,699.73,0.28582453]
[1736929848201,0.26238853,700.88,699.73,0.28582453]
[1736929848699,1.06660352,700.89,699.73,0.28582453]
[1736929848895,0.26238999,700.87,699.73,0.28582453]
[1736929849099,0.26238999,700.86,699.73,0.28582453]
[1736929849302,1.06660352,700.82,699.73,0.28582453]
[1736929849601,0.26238999,700.81,699.73,0.28582453]
[1736929850001,1.06660352,700.82,699.73,0.28582453]
[1736929850601,0.26238349,700.81,699.73,0.28582453]
[1736929851397,1.06660352,700.8,699.73,0.28582453]
[1736929852602,0.28532705,700.95,699.73,0.28582453]
[1736929852603,1.06660352,700.81,699.73,0.28582453]
[1736929853610,1.06660352,700.79,699.73,0.28582453]
[1736929854713,1.06660352,700.83,699.73,0.28582453]
[1736929856011,0.28532705,700.95,699.73,0.28582453]
[1736929856012,1.06660352,700.79,699.73,0.28582453]
[1736929856805,1.06660352,700.74,699.73,0.28582453]
[1736929857406,0.28532705,700.95,699.73,0.28582453]
[1736929859413,1.07054179,700.8,699.73,0.28582453]
[1736929860415,1.07054179,700.81,699.73,0.28582453]
[1736929862917,1.07054179,700.79,699.73,0.28582453]
[1736929863912,1.07054179,700.82,699.73,0.28582453]
[1736929864912,1.07054179,700.77,699.73,0.28582453]
[1736929868021,1.07054179,700.71,699.73,0.28582453]
[1736929869118,1.07054179,700.73,699.73,0.28582453]
[1736929871218,1.07054179,700.72,699.73,0.28582453]
[1736929872219,1.07054179,700.73,699.73,0.28582453]
[1736929874225,1.07054179,700.76,699.73,0.28582453]
[1736929879237,1.07054179,700.79,699.73,0.28582453]
[1736929880133,1.07054179,700.8,699.73,0.28582453]
[1736929881438,1.07054179,700.78,699.73,0.28582453]